fUSD/lending_fUSD_20250324
["ID","MTS","AMOUNT","RATE_DAILY","PERIOD"]
[356619470,1742845140837,-500.0,0.00046575,120]
[356619471,1742845140862,-507.08694966,0.00046575,120]
[356619472,1742845140887,-504.6070408,0.00046575,120]
[356619473,1742845140911,-500.0,0.00046575,120]
[356619474,1742845140936,-500.0,0.00046575,120]
[356619475,1742845140962,-500.0,0.00046575,120]
[356619476,1742845140987,-500.0,0.00046575,120]
[356619477,1742845141012,-500.0,0.00046575,120]
[356619478,1742845141036,-504.17406419,0.00046575,120]
[356619479,1742845141061,-502.33409582,0.00046575,120]
[356619480,1742845141085,-500.0,0.00046575,120]
[356619481,1742845141110,-500.0,0.00046575,120]
[356619482,1742845141135,-500.0,0.00046575,120]
[356619483,1742845141159,-505.60847334,0.00046575,120]
[356619484,1742845141287,-500.0,0.00046575,120]
[356619485,1742845141313,-501.7104029,0.00046575,120]
[356619486,1742845141346,-500.0,0.00046575,120]
[356619487,1742845141374,-500.0,0.00046575,120]
[356619488,1742845141399,-500.0,0.00046575,120]
[356619489,1742845141423,-500.0,0.00046575,120]
[356619490,1742845141447,-500.0,0.00046575,120]
[356619491,1742845141470,-500.0,0.00046575,120]
[356619492,1742845141494,-503.93609685,0.00046575,120]
[356619493,1742845141518,-501.96360662,0.00046575,120]
[356619494,1742845141542,-500.0,0.00046575,120]
[356619495,1742845141567,-500.0,0.00046575,120]
[356619496,1742845141591,-292.60522341,0.00046575,120]
[356619497,1742845141615,-500.0,0.00046575,120]
[356619498,1742845141639,-500.0,0.00046575,120]
[356619499,1742845141664,-500.0,0.00046575,120]
[356619500,1742845141688,-500.0,0.00046575,120]
[356619501,1742845141713,-500.0,0.00046575,120]
[356619502,1742845141738,-507.44424587,0.00046575,120]
[356619503,1742845141762,-500.0,0.00046575,120]
[356619504,1742845141786,-503.0599088,0.00046575,120]
[356619505,1742845141810,-500.0,0.00046575,120]
[356619506,1742845141834,-619.10097783,0.00046575,120]
[356619507,1742845141858,-533.48095895,0.00046575,120]
[356619508,1742845141882,-500.0,0.00046575,120]
[356619509,1742845141907,-502.14398719,0.00046575,120]
[356619510,1742845141931,-467.50800887,0.00046575,120]
[356619511,1742845141955,-500.0,0.00046575,120]
[356619512,1742845141979,-506.2374437,0.00046575,120]
[356619513,1742845142005,-608.73776091,0.00046575,120]
[356619514,1742845142030,-500.0,0.00046575,120]
[356619515,1742845142056,-500.0,0.00046575,120]
[356619516,1742845142081,-501.06,0.00046575,120]
[356619517,1742845142105,-504.55273938,0.00046575,120]
[356619518,1742845142129,-500.0,0.00046575,120]
[356619519,1742845142153,-500.0,0.00046575,120]
[356619520,1742845142176,-504.70298493,0.00046575,120]
[356619521,1742845142200,-500.0,0.00046575,120]
[356619522,1742845142224,-500.0,0.00046575,120]
[356619523,1742845142247,-505.09088106,0.00046575,120]
[356619524,1742845142271,-556.90314681,0.00046575,120]
[356619525,1742845142295,-500.0,0.00046575,120]
[356619526,1742845142323,-500.0,0.00046575,120]
[356619527,1742845142348,-500.0,0.00046575,120]
[356619528,1742845142372,-506.17237877,0.00046575,120]
[356619529,1742845142401,-500.0,0.00046575,120]
[356619530,1742845142428,-618.62162662,0.00046575,120]
[356619531,1742845142452,-500.0,0.00046575,120]
[356619532,1742845142476,-523.08964024,0.00046575,120]
[356619533,1742845142500,-154.59123223,0.00046575,120]
[356619534,1742845142524,-450.39854902,0.00046575,120]
[356619535,1742845142549,-515.45534245,0.00046575,120]
[356619536,1742845142573,-500.0,0.00046575,120]
[356619537,1742845142596,-506.39003652,0.00046575,120]
[356619538,1742845142620,-509.89305381,0.00046575,120]
[356619539,1742845142643,-505.68063728,0.00046575,120]
[356619540,1742845142667,-500.0,0.00046575,120]
[356619541,1742845142690,-502.41718338,0.00046575,120]
[356619542,1742845142713,-500.0,0.00046575,120]
[356619543,1742845142737,-500.0,0.00046575,120]
[356619544,1742845142760,-641.04257564,0.00046575,120]
[356619545,1742845142784,-500.0,0.00046575,120]
[356619546,1742845142807,-500.0,0.00046575,120]
[356619547,1742845142832,-500.0,0.00046575,120]
[356619548,1742845142855,-552.31081402,0.00046575,120]
[356619549,1742845142878,-505.15662153,0.00046575,120]
[356619550,1742845142901,-501.89502872,0.00046575,120]
[356619551,1742845142926,-503.91749016,0.00046575,120]
[356619552,1742845142950,-512.65603084,0.00046575,120]
[356619553,1742845142974,-514.56141821,0.00046575,120]
[356619554,1742845142998,-500.0,0.00046575,120]
[356619555,1742845143022,-502.41081792,0.00046575,120]
[356619556,1742845143047,-500.0,0.00046575,120]
[356619557,1742845143074,-500.0,0.00046575,120]
[356619558,1742845143099,-515.91423311,0.00046575,120]
[356619559,1742845143124,-501.4968109,0.00046575,120]
[356619560,1742845143259,-504.71143156,0.00046575,120]
[356619561,1742845143283,-499.95536025,0.00046575,120]
[356619562,1742845143311,-500.0,0.00046575,120]
[356619563,1742845143338,-507.45657466,0.00046575,120]
[356619564,1742845143365,-503.67994648,0.00046575,120]
[356619565,1742845143392,-506.73316204,0.00046575,120]
[356619566,1742845143420,-248.27029366,0.00046575,120]
[356619567,1742845143446,-500.0,0.00046575,120]
[356619568,1742845143471,-500.0,0.00046575,120]
[356619569,1742845143499,-507.51055954,0.00046575,120]
[356619570,1742845143525,-501.72945606,0.00046575,120]
[356619571,1742845143550,-1231.79,0.00046575,120]
[356619572,1742845143575,-503.95667193,0.00046575,120]
[356619573,1742845143600,-532.9120336,0.00046575,120]
[356619574,1742845143626,-502.77621425,0.00046575,120]
[356619575,1742845143653,-529.10712416,0.00046575,120]
[356619576,1742845143677,-500.0,0.00046575,120]
[356619577,1742845143702,-505.22681005,0.00046575,120]
[356619578,1742845143728,-500.0,0.00046575,120]
[356619579,1742845143753,-502.80948933,0.00046575,120]
[356619580,1742845143779,-500.0,0.00046575,120]
[356619581,1742845143804,-502.23984843,0.00046575,120]
[356619582,1742845143829,-502.50736772,0.00046575,120]
[356619583,1742845143854,-500.0,0.00046575,120]
[356619584,1742845143879,-291.09374738,0.00046575,120]
[356619585,1742845143905,-500.0,0.00046575,120]
[356619586,1742845143931,-504.48680715,0.00046575,120]
[356619587,1742845143955,-500.0,0.00046575,120]
[356619588,1742845143980,-503.12325902,0.00046575,120]
[356619589,1742845144005,-520.24662139,0.00046575,120]
[356619590,1742845144029,-505.1008154,0.00046575,120]
[356619591,1742845144056,-503.57240326,0.00046575,120]
[356619592,1742845144081,-563.99567229,0.00046575,120]
[356619593,1742845144107,-500.0,0.00046575,120]
[356619594,1742845144131,-500.0,0.00046575,120]
[356619595,1742845144156,-500.0,0.00046575,120]
[356619596,1742845144181,-500.0,0.00046575,120]
[356619597,1742845144205,-500.0,0.00046575,120]
[356619598,1742845144231,-1002.64458015,0.00046575,120]
[356619599,1742845144256,-602.83914618,0.00046575,120]
[356619600,1742845144281,-562.47388731,0.00046575,120]
[356619601,1742845144305,-503.90428414,0.00046575,120]
[356619602,1742845144331,-500.0,0.00046575,120]
[356619603,1742845144355,-523.85288499,0.00046575,120]
[356619604,1742845144379,-505.17029051,0.00046575,120]
[356619605,1742845144405,-509.73197312,0.00046575,120]
[356619606,1742845144430,-500.0,0.00046575,120]
[356619607,1742845144454,-500.0,0.00046575,120]
[356619608,1742845144479,-506.08046583,0.00046575,120]
[356619609,1742845144504,-502.25124254,0.00046575,120]
[356619610,1742845144532,-500.0,0.00046575,120]
[356619611,1742845144557,-539.08936238,0.00046575,120]
[356619612,1742845144582,-517.16183373,0.00046575,120]
[356619613,1742845144606,-537.63045618,0.00046575,120]
[356619614,1742845144630,-503.64344209,0.00046575,120]
[356619615,1742845144654,-500.0,0.00046575,120]
[356619616,1742845144681,-506.07072412,0.00046575,120]
[356619617,1742845144706,-514.81755386,0.00046575,120]
[356619618,1742845144731,-500.0,0.00046575,120]
[356619619,1742845144755,-504.64618563,0.00046575,120]
[356619620,1742845144779,-539.63361261,0.00046575,120]
[356619621,1742845144804,-502.03337472,0.00046575,120]
[356619622,1742845144828,-501.37433421,0.00046575,120]
[356619623,1742845144851,-502.51802683,0.00046575,120]
[356619624,1742845144875,-511.92954077,0.00046575,120]
[356619625,1742845144900,-245.65092818,0.00046575,120]
[356619626,1742845144924,-500.0,0.00046575,120]
[356619627,1742845144949,-520.66806939,0.00046575,120]
[356619628,1742845144974,-500.0,0.00046575,120]
[356619629,1742845144998,-500.0,0.00046575,120]
[356619630,1742845145024,-500.0,0.00046575,120]
[356619631,1742845145048,-178.54848228,0.00046575,120]
[356619632,1742845145177,-502.90400493,0.00046575,120]
[356619633,1742845145203,-500.0,0.00046575,120]
[356619634,1742845145227,-518.72936056,0.00046575,120]
[356619635,1742845145252,-500.0,0.00046575,120]
[356619636,1742845145276,-500.0,0.00046575,120]
[356619637,1742845145301,-500.0,0.00046575,120]
[356619638,1742845145329,-500.0,0.00046575,120]
[356619639,1742845145355,-500.0,0.00046575,120]
[356619640,1742845145381,-527.47707631,0.00046575,120]
[356619641,1742845145406,-514.67891928,0.00046575,120]
[356619642,1742845145430,-512.51238882,0.00046575,120]
[356619643,1742845145454,-534.11332156,0.00046575,120]
[356619644,1742845145479,-300.0,0.00046575,30]
[356619645,1742845145503,-500.0,0.00046575,120]
[356619646,1742845145526,-519.23108535,0.00046575,120]
[356619647,1742845145550,-517.44802532,0.00046575,120]
[356619648,1742845145573,-511.29419453,0.00046575,120]
[356619649,1742845145598,-527.60460028,0.00046575,60]
[356619650,1742845145622,-500.0,0.00046575,120]
[356619651,1742845145647,-528.70424568,0.00046575,120]
[356619652,1742845145672,-230.28839773,0.00046575,120]
[356619653,1742845145697,-500.0,0.00046575,120]
[356619654,1742845145722,-500.0,0.00046575,120]
[356619655,1742845145748,-500.0,0.00046575,120]
[356619656,1742845145771,-521.98338089,0.00046575,120]
[356619657,1742845145796,-500.0,0.00046575,120]
[356619658,1742845145820,-500.0,0.00046575,30]
[356619659,1742845145845,-536.55930407,0.00046575,120]
[356619660,1742845145868,-509.06438091,0.00046575,120]
[356619661,1742845145893,-500.0,0.00046575,120]
[356619662,1742845145917,-514.41899368,0.00046575,120]
[356619663,1742845145942,-512.55560652,0.00046575,120]
[356619664,1742845145967,-533.79980157,0.00046575,120]
[356619665,1742845145992,-526.39464412,0.00046575,120]
[356619666,1742845146017,-500.0,0.00046575,120]
[356619667,1742845146041,-514.69578734,0.00046575,120]
[356619668,1742845146065,-521.89755855,0.00046575,120]
[356619669,1742845146089,-500.0,0.00046575,120]
[356619670,1742845146113,-514.72773993,0.00046575,120]
[356619671,1742845146137,-522.17680201,0.00046575,120]
[356619672,1742845146161,-508.49110344,0.00046575,120]
[356619673,1742845146185,-500.0,0.00046575,120]
[356619674,1742845146209,-562.39671488,0.00046575,120]
[356619675,1742845146234,-500.0,0.00046575,120]
[356619676,1742845146258,-500.0,0.00046575,120]
[356619677,1742845146283,-500.0,0.00046575,120]
[356619678,1742845146307,-612.41212788,0.00046575,120]
[356619679,1742845146334,-500.0,0.00046575,120]
[356619680,1742845146358,-500.0,0.00046575,120]
[356619681,1742845146384,-500.0,0.00046575,120]
[356619682,1742845146409,-500.0,0.00046575,120]
[356619683,1742845146434,-500.0,0.00046575,120]
[356619684,1742845146458,-500.0,0.00046575,120]
[356619685,1742845146485,-300.0,0.00046575,120]
[356619686,1742845146508,-500.0,0.00046575,120]
[356619687,1742845146532,-507.088516,0.00046575,120]
[356619688,1742845146555,-500.0,0.00046575,120]
[356619689,1742845146579,-538.93119759,0.00046575,120]
[356619690,1742845146602,-514.72424184,0.00046575,120]
[356619691,1742845146626,-558.32911879,0.00046575,120]
[356619692,1742845146650,-500.0,0.00046575,120]
[356619693,1742845146675,-515.40522443,0.00046575,120]
[356619694,1742845146698,-526.77446354,0.00046575,120]
[356619695,1742845146723,-564.68751027,0.00046575,120]
[356619696,1742845146748,-500.0,0.00046575,120]
[356619697,1742845146771,-500.0,0.00046575,120]
[356619698,1742845146795,-500.0,0.00046575,120]
[356619699,1742845146818,-500.0,0.00046575,120]
[356619700,1742845146845,-500.0,0.00046575,120]
[356619701,1742845146868,-500.0,0.00046575,120]
[356619702,1742845146994,-549.04794761,0.00046575,120]
[356619703,1742845147021,-500.0,0.00046575,120]
[356619704,1742845147045,-500.0,0.00046575,120]
[356619705,1742845147070,-500.0,0.00046575,120]
[356619706,1742845147096,-500.0,0.00046575,120]
[356619707,1742845147121,-500.0,0.00046575,120]
[356619708,1742845147145,-507.58876697,0.00046575,120]
[356619709,1742845147169,-510.12027754,0.00046575,120]
[356619710,1742845147194,-500.0,0.00046575,120]
[356619711,1742845147218,-534.1555343,0.00046575,120]
[356619712,1742845147243,-547.66959607,0.00046575,120]
[356619713,1742845147267,-503.93703908,0.00046575,120]
[356619714,1742845147290,-500.0,0.00046575,120]
[356619715,1742845147314,-500.0,0.00046575,120]
[356619716,1742845147341,-512.03366679,0.00046575,120]
[356619717,1742845147367,-500.0,0.00046575,120]
[356619718,1742845147392,-500.0,0.00046575,120]
[356619719,1742845147417,-500.0,0.00046575,120]
[356619720,1742845147441,-500.0,0.00046575,120]
[356619721,1742845147466,-502.37235979,0.00046575,120]
[356619722,1742845147491,-511.95408469,0.00046575,120]
[356619723,1742845147515,-500.0,0.00046575,120]
[356619724,1742845147541,-519.76519661,0.00046575,120]
[356619725,1742845147566,-507.48009665,0.00046575,120]
[356619726,1742845147592,-504.98078264,0.00046575,120]
[356619727,1742845147616,-504.38244679,0.00046575,120]
[356619728,1742845147641,-508.11443379,0.00046575,120]
[356619729,1742845147666,-500.0,0.00046575,120]
[356619730,1742845147691,-538.80961047,0.00046575,120]
[356619731,1742845147716,-500.0,0.00046575,120]
[356619732,1742845147742,-562.56501941,0.00046575,120]
[356619733,1742845147767,-507.8521022,0.00046575,120]
[356619734,1742845147792,-506.87429734,0.00046575,120]
[356619735,1742845147818,-500.0,0.00046575,120]
[356619736,1742845147843,-282.12997858,0.00046575,120]
[356619737,1742845147868,-500.0,0.00046575,120]
[356619738,1742845147894,-514.61141435,0.00046575,120]
[356619739,1742845147918,-500.0,0.00046575,120]
[356619740,1742845147944,-538.85818739,0.00046575,120]
[356619741,1742845147970,-500.0,0.00046575,120]
[356619742,1742845147996,-500.0,0.00046575,120]
[356619743,1742845148024,-502.22053011,0.00046575,120]
[356619744,1742845148049,-608.06284575,0.00046575,120]
[356619745,1742845148074,-500.0,0.00046575,120]
[356619746,1742845148103,-500.0,0.00046575,120]
[356619747,1742845148139,-533.33187992,0.00046575,120]
[356619748,1742845148181,-527.47569559,0.00046575,120]
[356619749,1742845148210,-500.0,0.00046575,120]
[356619750,1742845148235,-506.22123424,0.00046575,120]
[356619751,1742845148260,-500.0,0.00046575,120]
[356619752,1742845148284,-500.0,0.00046575,120]
[356619753,1742845148310,-500.0,0.00046575,120]
[356619754,1742845148340,-500.0,0.00046575,120]
[356619755,1742845148366,-500.0,0.00046575,120]
[356619756,1742845148392,-534.16952402,0.00046575,120]
[356619757,1742845148425,-533.78953914,0.00046575,120]
[356619758,1742845148471,-500.0,0.00046575,120]
[356619759,1742845148512,-500.0,0.00046575,120]
[356619760,1742845148538,-508.75730158,0.00046575,120]
[356619761,1742845148564,-500.0,0.00046575,120]
[356619762,1742845148590,-500.0,0.00046575,120]
[356619763,1742845148615,-500.0,0.00046575,120]
[356619764,1742845148640,-500.0,0.00046575,120]
[356619765,1742845148666,-500.0,0.00046575,120]
[356619766,1742845148693,-500.0,0.00046575,120]
[356619767,1742845148720,-525.59189991,0.00046575,120]
[356619768,1742845148746,-532.68691371,0.00046575,120]
[356619769,1742845148772,-500.0,0.00046575,120]
[356619770,1742845148892,-500.0,0.00046575,120]
[356619771,1742845148925,-511.50167049,0.00046575,120]
[356619772,1742845148955,-500.0,0.00046575,120]
[356619773,1742845148988,-515.34118853,0.00046575,120]
[356619774,1742845149016,-512.83931327,0.00046575,120]
[356619775,1742845149049,-500.0,0.00046575,120]
[356619776,1742845149077,-529.01626253,0.00046575,120]
[356619777,1742845149103,-519.91894339,0.00046575,120]
[356619778,1742845149129,-494.0,0.00046575,120]
[356619779,1742845149154,-500.0,0.00046575,120]
[356619780,1742845149179,-500.0,0.00046575,120]
[356619781,1742845149203,-511.41478291,0.00046575,120]
[356619782,1742845149228,-508.73768558,0.00046575,120]
[356619783,1742845149252,-500.0,0.00046575,120]
[356619784,1742845149276,-500.0,0.00046575,120]
[356619785,1742845149300,-500.0,0.00046575,120]
[356619786,1742845149330,-536.52557523,0.00046575,120]
[356619787,1742845149354,-500.0,0.00046575,120]
[356619788,1742845149379,-521.58911834,0.00046575,120]
[356619789,1742845149404,-503.41246993,0.00046575,120]
[356619790,1742845149429,-534.10966197,0.00046575,120]
[356619791,1742845149453,-500.0,0.00046575,120]
[356619792,1742845149479,-500.0,0.00046575,120]
[356619793,1742845149505,-500.0,0.00046575,120]
[356619794,1742845149530,-500.0,0.00046575,120]
[356619795,1742845149554,-522.06009241,0.00046575,120]
[356619796,1742845149579,-500.0,0.00046575,120]
[356619797,1742845149603,-500.0,0.00046575,120]
[356619798,1742845149627,-519.82795338,0.00046575,120]
[356619799,1742845149651,-500.0,0.00046575,120]
[356619800,1742845149676,-500.0,0.00046575,120]
[356619801,1742845149701,-500.0,0.00046575,120]
[356619802,1742845149727,-500.0,0.00046575,120]
[356619803,1742845149752,-519.8371407,0.00046575,120]
[356619804,1742845149777,-515.29780311,0.00046575,120]
[356619805,1742845149801,-558.29427536,0.00046575,120]
[356619806,1742845149827,-522.26156256,0.00046575,120]
[356619807,1742845149855,-622.98798276,0.00046575,120]
[356619808,1742845149880,-500.0,0.00046575,120]
[356619809,1742845149905,-500.0,0.00046575,120]
[356619810,1742845149930,-500.0,0.00046575,120]
[356619811,1742845149956,-516.18184473,0.00046575,120]
[356619812,1742845149981,-500.0,0.00046575,120]
[356619813,1742845150006,-524.19802195,0.00046575,120]
[356619814,1742845150031,-500.0,0.00046575,30]
[356619815,1742845150057,-500.0,0.00046575,120]
[356619816,1742845150081,-500.0,0.00046575,120]
[356619817,1742845150107,-500.0,0.00046575,120]
[356619818,1742845150131,-504.82438491,0.00046575,120]
[356619819,1742845150156,-530.35007089,0.00046575,120]
[356619820,1742845150180,-500.0,0.00046575,120]
[356619821,1742845150205,-1233.45,0.00046575,120]
[356619822,1742845150230,-515.29604112,0.00046575,120]
[356619823,1742845150254,-519.5916252,0.00046575,120]
[356619824,1742845150279,-531.70476644,0.00046575,120]
[356619825,1742845150303,-500.0,0.00046575,120]
[356619826,1742845150331,-500.0,0.00046575,120]
[356619827,1742845150357,-504.34604583,0.00046575,120]
[356619828,1742845150382,-512.22058007,0.00046575,120]
[356619829,1742845150407,-500.0,0.00046575,120]
[356619830,1742845150432,-206.53622698,0.00046575,120]
[356619831,1742845150456,-510.25754061,0.00046575,120]
[356619832,1742845150481,-500.0,0.00046575,120]
[356619833,1742845150507,-500.0,0.00046575,120]
[356619834,1742845150532,-500.0,0.00046575,120]
[356619835,1742845150647,-500.0,0.00046575,120]
[356619836,1742845150673,-500.0,0.00046575,120]
[356619837,1742845150697,-500.0,0.00046575,120]
[356619838,1742845150721,-505.91561104,0.00046575,120]
[356619839,1742845150745,-519.63233295,0.00046575,120]
[356619840,1742845150770,-500.0,0.00046575,120]
[356619841,1742845150794,-500.0,0.00046575,120]
[356619842,1742845150819,-560.58148565,0.00046575,120]
[356619843,1742845150843,-521.42366554,0.00046575,120]
[356619844,1742845150867,-500.0,0.00046575,120]
[356619845,1742845150892,-509.6118492,0.00046575,120]
[356619846,1742845150916,-500.0,0.00046575,120]
[356619847,1742845150939,-359.78037629,0.00046575,120]
[356619848,1742845150963,-511.49520506,0.00046575,120]
[356619849,1742845150989,-500.0,0.00046575,120]
[356619850,1742845151014,-500.0,0.00046575,120]
[356619851,1742845151039,-524.80629934,0.00046575,120]
[356619852,1742845151063,-549.30140925,0.00046575,120]
[356619853,1742845151088,-500.0,0.00046575,120]
[356619854,1742845151112,-500.0,0.00046575,120]
[356619855,1742845151136,-500.0,0.00046575,120]
[356619856,1742845151160,-500.0,0.00046575,120]
[356619857,1742845151184,-500.0,0.00046575,120]
[356619858,1742845151208,-500.0,0.00046575,120]
[356619859,1742845151232,-500.0,0.00046575,120]
[356619860,1742845151256,-500.0,0.00046575,120]
[356619861,1742845151280,-500.0,0.00046575,120]
[356619862,1742845151306,-500.0,0.00046575,120]
[356619863,1742845151333,-518.36501319,0.00046575,120]
[356619864,1742845151358,-500.0,0.00046575,120]
[356619865,1742845151384,-514.21034187,0.00046575,120]
[356619866,1742845151409,-500.0,0.00046575,120]
[356619867,1742845151434,-518.4671502,0.00046575,120]
[356619868,1742845151458,-500.0,0.00046575,120]
[356619869,1742845151485,-509.28956231,0.00046575,120]
[356619870,1742845151511,-500.0,0.00046575,120]
[356619871,1742845151536,-500.0,0.00046575,120]
[356619872,1742845151561,-500.0,0.00046575,120]
[356619873,1742845151586,-535.04130238,0.00046575,120]
[356619874,1742845151612,-500.0,0.00046575,120]
[356619875,1742845151638,-619.45498003,0.00046575,120]
[356619876,1742845151664,-500.0,0.00046575,120]
[356619877,1742845151689,-500.0,0.00046575,120]
[356619878,1742845151715,-514.22988759,0.00046575,120]
[356619879,1742845151742,-503.49333331,0.00046575,120]
[356619880,1742845151767,-500.0,0.00046575,120]
[356619881,1742845151793,-500.0,0.00046575,120]
[356619882,1742845151818,-500.0,0.00046575,120]
[356619883,1742845151844,-500.0,0.00046575,120]
[356619884,1742845151869,-500.0,0.00046575,120]
[356619885,1742845151895,-500.0,0.00046575,120]
[356619886,1742845151921,-509.07659943,0.00046575,120]
[356619887,1742845151948,-1269.12,0.00046575,120]
[356619888,1742845151974,-526.55090681,0.00046575,120]
[356619889,1742845152001,-500.0,0.00046575,120]
[356619890,1742845152027,-509.92752558,0.00046575,120]
[356619891,1742845152052,-520.32632392,0.00046575,120]
[356619892,1742845152079,-500.0,0.00046575,120]
[356619893,1742845152104,-509.51493143,0.00046575,120]
[356619894,1742845152129,-500.0,0.00046575,120]
[356619895,1742845152153,-231.33962455,0.00046575,120]
[356619896,1742845152179,-500.0,0.00046575,120]
[356619897,1742845152203,-509.51323195,0.00046575,120]
[356619898,1742845152229,-504.37716314,0.00046575,120]
[356619899,1742845152349,-500.0,0.00046575,120]
[356619900,1742845152376,-500.0,0.00046575,120]
[356619901,1742845152402,-508.33905132,0.00046575,120]
[356619902,1742845152429,-500.0,0.00046575,120]
[356619903,1742845152454,-529.33354813,0.00046575,120]
[356619904,1742845152482,-500.0,0.00046575,120]
[356619905,1742845152507,-514.34244656,0.00046575,120]
[356619906,1742845152530,-500.0,0.00046575,120]
[356619907,1742845152555,-517.48887491,0.00046575,120]
[356619908,1742845152580,-500.0,0.00046575,120]
[356619909,1742845152604,-515.31246229,0.00046575,120]
[356619910,1742845152628,-500.0,0.00046575,120]
[356619911,1742845152651,-507.73692177,0.00046575,120]
[356619912,1742845152674,-500.0,0.00046575,120]
[356619913,1742845152698,-500.0,0.00046575,120]
[356619914,1742845152722,-500.0,0.00046575,120]
[356619915,1742845152747,-516.60823526,0.00046575,120]
[356619916,1742845152772,-500.0,0.00046575,120]
[356619917,1742845152796,-500.0,0.00046575,120]
[356619918,1742845152820,-2522.23657561,0.00046575,120]
[356619919,1742845152844,-506.14988339,0.00046575,120]
[356619920,1742845152869,-507.05164796,0.00046575,120]
[356619921,1742845152893,-535.24874359,0.00046575,120]
[356619922,1742845152917,-508.77247869,0.00046575,120]
[356619923,1742845152942,-500.0,0.00046575,120]
[356619924,1742845152967,-500.0,0.00046575,120]
[356619925,1742845152994,-500.0,0.00046575,120]
[356619926,1742845153019,-500.0,0.00046575,120]
[356619927,1742845153044,-500.0,0.00046575,120]
[356619928,1742845153070,-500.0,0.00046575,120]
[356619929,1742845153095,-516.03685539,0.00046575,120]
[356619930,1742845153120,-500.0,0.00046575,120]
[356619931,1742845153145,-505.97025194,0.00046575,120]
[356619932,1742845153169,-500.0,0.00046575,120]
[356619933,1742845153200,-512.09656435,0.00046575,120]
[356619934,1742845153226,-500.0,0.00046575,120]
[356619935,1742845153251,-500.0,0.00046575,120]
[356619936,1742845153276,-501.73629129,0.00046575,120]
[356619937,1742845153301,-500.0,0.00046575,120]
[356619938,1742845153329,-540.42213256,0.00046575,120]
[356619939,1742845153355,-500.0,0.00046575,120]
[356619940,1742845153380,-520.69753094,0.00046575,120]
[356619941,1742845153405,-500.0,0.00046575,120]
[356619942,1742845153431,-500.0,0.00046575,120]
[356619943,1742845153456,-500.0,0.00046575,120]
[356619944,1742845153482,-500.0,0.00046575,120]
[356619945,1742845153506,-500.0,0.00046575,120]
[356619946,1742845153532,-510.31962579,0.00046575,120]
[356619947,1742845153556,-500.0,0.00046575,120]
[356619948,1742845153583,-500.0,0.00046575,120]
[356619949,1742845153608,-500.0,0.00046575,120]
[356619950,1742845153634,-500.0,0.00046575,120]
[356619951,1742845153658,-500.0,0.00046575,120]
[356619952,1742845153683,-500.0,0.00046575,120]
[356619953,1742845153707,-307.49819013,0.00046575,120]
[356619954,1742845153732,-500.0,0.00046575,120]
[356619955,1742845153757,-500.0,0.00046575,120]
[356619956,1742845153782,-353.53699205,0.00046575,120]
[356619957,1742845153807,-500.0,0.00046575,120]
[356619958,1742845153836,-500.0,0.00046575,120]
[356619959,1742845153861,-508.95555392,0.00046575,120]
[356619960,1742845153993,-507.33840164,0.00046575,120]
[356619961,1742845154020,-500.0,0.00046575,120]
[356619962,1742845154047,-500.0,0.00046575,120]
[356619963,1742845154073,-500.0,0.00046575,120]
[356619964,1742845154100,-500.0,0.00046575,120]
[356619965,1742845154126,-500.0,0.00046575,120]
[356619966,1742845154151,-500.0,0.00046575,120]
[356619967,1742845154180,-500.0,0.00046575,120]
[356619968,1742845154205,-500.0,0.00046575,120]
[356619969,1742845154231,-500.0,0.00046575,120]